bitfinex/quotes_ETHUSD_20250331
["timestamp","ask_amount","ask_price","bid_price","bid_amount"]
[1743414792629,4.77855391,1787.1,1786.9,5.59628]
[1743414792828,3.24415391,1787.1,1787.0,5.59597]
[1743414793246,4.75455391,1787.3,1787.1,5.59544]
[1743414793446,0.00170178,1787.4,1787.2,5.65103139]
[1743414793649,3.00170178,1787.4,1787.3,5.59503]
[1743414793825,0.00170178,1787.4,1787.3,5.59503]
[1743414794228,3.00170178,1787.4,1787.3,5.59503]
[1743414794662,3.00170178,1787.4,1787.3,5.80591775]
[1743414795163,3.00170178,1787.4,1787.3,0.21088775]
[1743414795593,3.00170178,1787.4,1787.3,5.80591775]
[1743414796358,3.00170178,1787.4,1787.3,0.21088775]
[1743414796560,3.77732735,1787.4,1787.3,0.21088775]
[1743414796764,3.77732735,1787.4,1787.1,16.91001]
[1743414796963,3.77732735,1787.4,1787.3,0.21088775]
[1743414797173,3.77732735,1787.4,1787.1,11.3145]
[1743414797373,3.24415391,1787.3,1787.1,16.91001]
[1743414797866,3.24415391,1787.3,1787.1,11.3145]
[1743414798050,9.54147204,1787.3,1787.0,11.31492]
[1743414798367,3.94630204,1787.3,1787.0,5.5958]
[1743414798569,3.94630204,1787.3,1787.0,5.65175263]
[1743414798875,9.54149204,1787.3,1786.9,16.91125]
[1743414799365,5.59536,1787.2,1786.9,16.91121]
[1743414799562,7.1090452,1787.2,1786.9,11.31508]
[1743414799768,7.1090452,1787.2,1786.9,5.59608]
[1743414800358,1.5136852,1787.2,1787.0,5.59596]
[1743414800868,1.5136852,1787.2,1787.0,5.59586]
[1743414801051,9.54151204,1787.3,1787.0,5.59586]
[1743414801366,9.54151204,1787.3,1786.9,11.24828469]
[1743414801559,15.13680204,1787.3,1786.9,5.59615]
[1743414801758,8.83983391,1787.1,1786.8,11.31545]
[1743414802067,11.8028633,1787.1,1786.8,11.31545]
[1743414802642,11.8028633,1787.1,1786.8,16.91194]
[1743414802937,11.8028633,1787.1,1786.8,11.31545]
[1743414803138,3.24415391,1786.9,1786.7,5.59688]
[1743414803372,3.24415391,1786.9,1786.7,11.24960259]
[1743414803573,3.24415391,1786.9,1786.7,11.19356]
[1743414803872,3.24415391,1786.9,1786.7,5.59676]
[1743414804057,3.24415391,1786.9,1786.7,11.24948249]
[1743414804370,3.24415391,1786.9,1786.7,5.59676]
[1743414804771,2.96302939,1787.1,1786.8,5.59659]
[1743414804772,6.2071833,1787.1,1786.8,5.59659]
[1743414804962,4.76365391,1787.1,1786.7,5.59691]
[1743414805668,10.35936391,1787.1,1786.8,5.5965]
[1743414805973,4.76365391,1787.1,1786.8,5.59647]
[1743414806170,10.35937391,1787.1,1786.7,5.59685]
[1743414806357,3.24415391,1786.9,1786.7,5.59685]
[1743414806678,7.18192,1786.8,1786.5,11.31528]
[1743414806839,3.24415391,1786.7,1786.5,11.31528]
[1743414807265,3.24415391,1786.7,1786.6,5.59722]
[1743414808267,1.5853,1786.8,1786.6,11.19444]
[1743414808468,1.5853,1786.8,1786.7,5.59691]
[1743414808777,4.89225391,1786.9,1786.6,11.19417]
[1743414808944,6.60430904,1786.9,1786.7,11.19352]
[1743414809275,7.94537813,1787.3,1786.9,5.59601]
[1743414809473,6.24415391,1787.2,1787.0,5.59588]
[1743414809850,6.24415391,1787.2,1787.1,0.21696703]
[1743414810550,11.83949391,1787.2,1787.1,0.21696703]
[1743414810779,11.83949391,1787.2,1786.9,11.19219]
[1743414810979,13.81798111,1787.2,1787.1,0.21696703]
[1743414811277,19.82519364,1787.2,1787.1,0.21696703]
[1743414811467,14.22962364,1787.2,1786.9,5.59618]
[1743414811865,14.22962364,1787.2,1787.0,0.21696703]
[1743414812076,19.82512364,1787.2,1787.0,0.21696703]
[1743414812257,8.59565,1787.1,1787.0,0.21696703]
[1743414812578,10.87817736,1787.1,1787.0,0.21696703]
[1743414812784,1.6409,1787.0,1786.7,11.1937]
[1743414812948,10.48109391,1787.0,1786.7,5.5968]
[1743414813282,8.84074391,1786.8,1786.7,5.717]
[1743414813782,5.59736,1786.6,1786.3,39.38703]
[1743414813979,8.84140391,1786.6,1786.4,5.717]
[1743414814192,3.24415391,1786.6,1786.4,5.717]
[1743414814367,3.24415391,1786.6,1786.4,5.77297229]
[1743414814572,3.24415391,1786.6,1786.4,5.717]
[1743414815092,1.5466,1786.4,1785.8,1.5608]
[1743414815292,5.59991,1785.8,1785.4,1.5227]
[1743414815461,5.60037,1785.6,1785.4,5.717]
[1743414815669,8.84482391,1785.5,1785.2,1.5227]
[1743414815965,3.24415391,1785.3,1785.1,0.1]
[1743414816271,16.70561782,1785.2,1785.1,0.1]
[1743414816467,3.0,1784.9,1784.5,5.6036]
[1743414816669,3.24415391,1784.8,1784.5,5.6036]
[1743414816875,3.24415391,1784.8,1784.5,5.60381]
[1743414817075,3.24415391,1784.6,1784.4,5.72970409]
[1743414817282,3.24415391,1784.6,1784.4,5.72974409]
[1743414817480,3.24415391,1784.6,1784.4,0.12575409]
[1743414817688,3.24415391,1784.6,1784.3,5.22996409]
[1743414817894,3.24415391,1784.6,1784.4,5.60396]
[1743414818070,3.7288393,1784.6,1784.4,5.60394]
[1743414818275,8.84766391,1784.6,1784.2,5.60468]
[1743414818473,8.84766391,1784.6,1784.1,15.89484]
[1743414818474,3.24415391,1784.4,1784.1,15.89484]
[1743414818694,3.24415391,1784.2,1784.1,0.1]
[1743414819783,9.31674987,1784.3,1784.1,0.1]
[1743414820181,4.13826804,1784.6,1784.1,0.1]
[1743414820384,13.31602484,1784.6,1784.2,5.718]
[1743414820560,3.71229987,1784.4,1784.1,0.1]
[1743414820760,3.0,1784.4,1784.1,0.1]
[1743414820979,3.0,1784.4,1784.1,5.70504]
[1743414821187,3.0,1784.4,1784.1,5.82]
[1743414821593,1.6027,1784.7,1784.3,5.60416]
[1743414821794,3.0,1784.7,1784.3,5.60416]
[1743414822093,9.93988526,1784.8,1784.4,5.60397]
[1743414822272,9.93988526,1784.8,1784.5,5.72]
[1743414822473,3.71229987,1784.6,1784.2,5.60471]
[1743414822676,5.97505999,1784.5,1784.3,14.5]
[1743414823195,0.37122999,1784.5,1784.3,14.5]
[1743414823498,5.97506999,1784.5,1784.3,14.5]
[1743414823701,0.37122999,1784.5,1784.3,14.5]
[1743414824097,3.0,1784.8,1784.3,14.5]
[1743414824400,3.0,1784.8,1784.7,5.60318]
[1743414824583,3.71229987,1785.3,1784.9,5.60242]
[1743414824981,9.31383987,1785.3,1785.0,0.20549774]
[1743414825197,9.31421987,1785.1,1785.0,0.20549774]
[1743414825398,3.71229987,1785.1,1785.0,0.20549774]
[1743414825619,0.93138399,1785.2,1784.9,5.60242]
[1743414825897,3.0,1785.4,1785.1,5.60177]
[1743414826102,11.89335226,1785.5,1785.1,5.60175]
[1743414826291,5.60176,1785.2,1784.8,16.92635]
[1743414826474,11.20357,1785.2,1784.8,11.32367]
[1743414826875,5.60176,1785.2,1784.8,11.32367]
[1743414827081,1.53,1785.0,1784.7,5.60307]
[1743414827305,9.31423987,1785.1,1784.7,11.20607]
[1743414827603,10.95882786,1785.1,1784.8,5.60285]
[1743414828316,1.64458799,1785.1,1784.7,1.5181]
[1743414828476,10.13172,1785.2,1784.8,5.60275]
[1743414828806,0.00170178,1785.0,1784.9,5.60253]
[1743414828972,0.00170178,1785.0,1784.8,11.2055]
[1743414829173,0.00170178,1785.0,1784.9,5.60255]
[1743414829374,0.00170178,1785.0,1784.9,5.65856933]
[1743414829577,0.00170178,1785.0,1784.9,7.27868193]
[1743414832184,0.00170178,1785.0,1784.9,6.15255]
[1743414832384,0.00170178,1785.0,1784.9,6.20856059]
[1743414832586,0.00170178,1785.0,1784.9,7.75476059]
[1743414832886,0.00170178,1785.0,1784.9,7.69875]
[1743414833090,0.00170178,1785.0,1784.9,22.19875]
[1743414833301,0.00170178,1785.0,1784.9,21.64875]
[1743414833485,0.00170178,1785.0,1784.9,27.37075]
[1743414833684,0.00170178,1785.0,1784.9,27.92075]
[1743414834923,0.00170178,1785.0,1784.9,13.42075]
[1743414835613,0.00170178,1785.0,1784.9,7.69875]
[1743414835794,0.00170178,1785.0,1784.9,13.41975]
[1743414836517,0.00170178,1785.0,1784.9,12.86975]
[1743414836718,0.00170178,1785.0,1784.9,11.32355]
[1743414839791,0.00170178,1785.0,1784.9,11.52213748]
[1743414841821,0.00170178,1785.0,1784.9,5.80113748]
[1743414843026,0.00170178,1785.0,1784.9,7.98825714]
[1743414843226,0.00170178,1785.0,1784.9,7.93223748]
[1743414844725,0.00170178,1785.0,1784.9,9.91384502]
[1743414844899,0.00170178,1785.0,1784.9,9.85783323]
[1743414845320,0.00170178,1785.0,1784.9,7.93223748]
[1743414845827,0.00170178,1785.0,1784.9,0.19858748]
[1743414846026,10.10424178,1785.0,1784.9,0.19858748]
[1743414846201,1.5003,1784.5,1784.1,0.1]
[1743414846401,5.60423,1784.4,1784.1,0.1]
[1743414846719,4.64206799,1784.4,1784.3,5.60443]
[1743414846919,3.0,1784.4,1784.3,5.60443]
[1743414847095,1.5003,1784.5,1784.4,5.60412]
[1743414847301,1.6158,1784.7,1784.5,5.60361]
[1743414847503,1.6158,1784.7,1784.6,5.60349]
[1743414847703,3.0,1784.8,1784.5,5.6036]
[1743414847903,4.39306899,1784.8,1784.6,5.60349]
[1743414848100,1.6158,1784.9,1784.7,5.60318]
[1743414848329,1.6158,1784.9,1784.7,11.32518]
[1743414848519,4.6158,1784.9,1784.7,11.32518]
[1743414849628,0.00170178,1785.0,1784.7,11.32513]
[1743414849849,0.00170178,1785.0,1784.9,5.60255]
[1743414850002,0.00170178,1785.0,1784.8,11.20552]
[1743414850428,0.00170178,1785.0,1784.9,5.60255]
[1743414850844,0.00170178,1785.0,1784.8,5.60276]
[1743414851331,0.00170178,1785.0,1784.8,11.20548]
[1743414852151,0.46285196,1785.0,1784.8,11.20541]
[1743414852452,0.46285196,1785.0,1784.9,5.60255]
[1743414853056,0.00170178,1785.0,1784.9,5.60255]
[1743414853715,0.00170178,1785.0,1784.9,0.16614594]
[1743414853933,0.00170178,1785.0,1784.8,11.20544]
[1743414854133,0.00170178,1785.0,1784.9,5.76869594]
[1743414856322,5.60394178,1785.0,1784.9,0.16614594]
[1743414856542,4.12230196,1785.0,1784.8,5.60276]
[1743414856854,4.12230196,1785.0,1784.9,0.16760867]
[1743414857051,9.72454196,1785.0,1784.9,0.16760867]
[1743414857255,4.12230196,1785.0,1784.8,5.60286]
[1743414857430,4.12230196,1785.0,1784.9,0.16760867]
[1743414857634,3.00170178,1785.0,1784.9,5.77015867]
[1743414858556,0.00170178,1785.0,1784.9,5.77015867]
[1743414858926,0.00170178,1785.0,1784.9,5.82617544]
[1743414859341,0.00170178,1785.0,1784.9,7.92707544]
[1743414859538,0.00170178,1785.0,1784.9,7.87105867]
[1743414860454,0.00170178,1785.0,1784.9,12.04215867]
[1743414860756,0.00170178,1785.0,1784.9,11.49215867]
[1743414862334,0.00170178,1785.0,1784.9,13.75164654]
[1743414862655,0.00170178,1785.0,1784.9,15.33734654]
[1743414862960,1.78e-06,1785.0,1784.9,29.83734654]
[1743414863461,1.78e-06,1785.0,1784.9,43.02734654]
[1743414863863,0.74624041,1786.1,1785.8,11.19946]
[1743414863864,2.38864041,1786.1,1785.8,11.19946]
[1743414864068,1.6424,1786.1,1786.0,5.5991]
[1743414864562,3.25366879,1786.2,1786.0,11.35816969]
[1743414864727,3.0,1786.2,1786.1,5.59868]
[1743414865160,3.0,1786.2,1786.1,5.75881969]
[1743414865359,1.6424,1786.3,1786.2,5.59847]
[1743414865566,1.5266,1786.5,1786.3,5.59804]
[1743414865764,1.5266,1786.5,1786.4,5.75798969]
[1743414867251,8.75545896,1786.8,1786.6,5.59722]
[1743414867252,3.15884896,1786.8,1786.6,5.59722]
[1743414867475,3.15884896,1786.8,1786.6,11.31722]
[1743414867780,7.21338,1786.9,1786.7,0.15789525]
[1743414868079,8.59698,1786.7,1786.4,5.72]
[1743414868283,12.29964855,1786.7,1786.4,5.72]
[1743414868450,6.70266855,1786.7,1786.4,5.72]
[1743414868771,6.70266855,1786.7,1786.4,11.31784]
[1743414869333,5.59732,1786.6,1786.4,5.72]
[1743414869533,1.6666,1786.5,1786.4,5.72]
[1743414869761,1.6666,1786.5,1786.4,5.87789525]
[1743414870263,1.6666,1786.5,1786.4,0.15789525]
[1743414870630,3.0,1786.7,1786.4,5.75574525]
[1743414870947,3.0,1786.7,1786.4,5.75562525]
[1743414871636,9.6859988,1786.7,1786.4,5.75562525]
[1743414872154,18.98576735,1786.7,1786.4,0.15789525]
[1743414872460,13.38870735,1786.7,1786.4,0.15789525]
[1743414873360,18.98587735,1786.7,1786.4,0.15789525]
[1743414873551,13.93919855,1786.5,1786.4,0.15789525]
[1743414873729,10.29532341,1786.5,1786.0,5.59892]
[1743414873935,3.0,1786.3,1786.1,0.13874952]
[1743414874135,8.59822,1786.3,1786.1,0.13874952]
[1743414874460,14.19669,1786.3,1785.9,5.59935]
[1743414874663,8.59822,1786.3,1786.2,0.13874952]
[1743414874833,4.46254833,1786.3,1786.0,5.59887]
[1743414875032,4.46254833,1786.3,1786.2,0.13874952]
[1743414875229,1.46254833,1786.3,1786.1,5.59873]
[1743414875466,9.0273933,1786.4,1786.2,0.13874952]
[1743414875673,3.4293633,1786.4,1786.2,0.13874952]
[1743414875869,3.4293633,1786.4,1786.2,5.59847]
[1743414875870,3.0,1786.4,1786.2,5.59847]
[1743414876035,1.639,1786.5,1786.3,0.13874952]
[1743414876638,3.0,1786.6,1786.3,5.73677952]
[1743414876833,8.59785,1786.4,1786.3,0.13874952]
[1743414877239,10.63990456,1786.4,1786.3,0.13874952]
[1743414877973,14.19678,1786.3,1785.9,11.31631]
[1743414878285,10.91633855,1786.1,1785.8,5.717]
[1743414878444,3.0,1786.3,1785.9,1.5894]
[1743414878782,3.90164346,1786.3,1786.0,5.59901]
[1743414878949,9.49980346,1786.3,1786.0,5.59901]
[1743414879154,3.0,1786.3,1786.1,5.59879]
[1743414879370,1.6147,1786.5,1786.0,5.65491806]
[1743414879558,1.6147,1786.5,1786.4,5.59785]
[1743414879890,1.5399,1786.7,1786.4,5.5977]
[1743414880175,4.5399,1786.7,1786.4,5.5977]
[1743414880472,4.5399,1786.7,1786.5,5.59752]
[1743414880786,2.12524197,1786.9,1786.6,5.59706]
[1743414881085,8.6315392,1786.9,1786.5,11.195]
[1743414881257,3.0,1786.8,1786.6,5.5971]
[1743414881583,3.0,1786.8,1786.5,5.59741]
[1743414881750,8.59676,1786.8,1786.4,11.19526]
[1743414882072,5.59701,1786.7,1786.3,16.9132]
[1743414882442,5.59701,1786.7,1786.4,5.59781]
[1743414883383,10.68985878,1786.8,1786.4,11.19554]
[1743414883872,10.68985878,1786.8,1786.3,5.717]
[1743414883873,10.68975878,1786.8,1786.3,11.31515]
[1743414884070,5.59704,1786.7,1786.3,11.31515]
[1743414884242,12.26321388,1786.7,1786.3,11.31515]
[1743414884443,3.0,1786.6,1786.3,11.31515]
[1743414884875,3.0,1786.6,1786.4,0.13994773]
[1743414886273,0.1,1786.9,1786.8,5.59659]
[1743414886766,0.1,1786.9,1786.8,5.73518318]
[1743414887544,0.1,1786.9,1786.8,5.79114587]
[1743414887863,0.1,1786.9,1786.8,8.06120966]
[1743414888374,0.1,1786.9,1786.8,8.06120949]
[1743414888577,0.1,1786.9,1786.8,5.7911409]
[1743414888747,0.1,1786.9,1786.8,5.73518318]
[1743414889154,0.1,1786.9,1786.8,0.13859318]
[1743414889954,10.98104855,1786.9,1786.8,0.13859318]
[1743414890290,4.6821,1786.9,1786.7,5.5968]
[1743414890457,3.1,1786.9,1786.8,0.13697866]
[1743414890846,3.1,1786.9,1786.8,5.73356866]
[1743414891376,3.1,1786.9,1786.8,0.13697866]
[1743414892071,9.565882,1786.9,1786.8,0.13697866]
[1743414892275,15.162442,1786.9,1786.5,5.59753]
[1743414892476,3.969602,1786.9,1786.8,0.13697866]
[1743414892648,3.969602,1786.9,1786.6,5.59713]
[1743414892851,9.565922,1786.9,1786.8,0.13697866]
[1743414893090,3.969602,1786.9,1786.6,11.19426]
[1743414893290,3.969602,1786.9,1786.8,0.13697866]
[1743414893451,9.566002,1786.9,1786.5,5.59748]
[1743414893652,5.5966,1786.8,1786.5,5.59748]
[1743414893856,9.565952,1786.9,1786.6,5.59722]
[1743414894393,9.565952,1786.9,1786.5,5.59744]
[1743414894695,5.59674,1786.8,1786.5,5.59744]
[1743414894991,5.59749,1786.6,1786.2,11.19682]
[1743414895196,11.1949,1786.6,1786.3,5.715]
[1743414895494,5.59754,1786.5,1786.3,5.715]
[1743414895784,11.19483,1786.6,1786.3,5.715]
[1743414895989,5.59739,1786.6,1786.3,5.715]
[1743414896195,6.68105586,1786.6,1786.3,11.31313]
[1743414896990,12.27843586,1786.6,1786.3,11.31313]
[1743414897283,12.27848586,1786.6,1786.2,11.19671]
[1743414897467,5.59772,1786.5,1786.1,18.47694]
[1743414897667,15.27849586,1786.6,1786.2,5.59826]
[1743414897868,5.59792,1786.4,1786.1,5.59872]
[1743414898076,5.59792,1786.4,1786.1,11.31266]
[1743414898269,1.52784959,1786.5,1786.3,5.59815]
[1743414898451,4.08366586,1786.6,1786.3,11.1963]
[1743414898648,9.68101586,1786.6,1786.3,5.59815]
[1743414898855,5.59754,1786.5,1786.2,5.59841]
[1743414899054,11.19529,1786.5,1786.1,11.31268]
[1743414899465,5.59798,1786.4,1786.1,5.714]
[1743414899667,5.59798,1786.4,1786.1,5.59876]
[1743414899999,5.59798,1786.4,1786.2,0.12652155]
[1743414900280,4.08366586,1786.6,1786.2,0.12652155]
[1743414900281,15.27831586,1786.6,1786.2,5.72488155]
[1743414900464,9.68091586,1786.6,1786.2,5.72488155]
[1743414900663,8.59725,1786.6,1786.2,5.72493155]
[1743414901182,8.59725,1786.6,1786.3,5.5981]
[1743414901389,14.19464,1786.6,1786.3,5.59806]
[1743414901555,14.19464,1786.6,1786.4,0.12652155]
[1743414901756,3.0,1786.6,1786.4,0.12652155]
[1743414902090,3.0,1786.6,1786.4,5.59772]
[1743414902295,3.0,1786.6,1786.5,0.12652155]
[1743414902780,3.0,1786.6,1786.5,5.7246322]
[1743414903083,1.6699,1786.9,1786.6,5.59696]
[1743414903283,3.0,1786.8,1786.6,5.59696]
[1743414903476,7.26628,1786.9,1786.6,5.59696]
[1743414903677,7.26628,1786.9,1786.7,0.1271022]
[1743414904084,4.6699,1786.9,1786.7,5.59685]
[1743414904373,4.6699,1786.9,1786.8,0.1271022]
[1743414904561,4.6699,1786.9,1786.7,5.6526754]
[1743414904562,3.1,1786.9,1786.7,5.6526754]
[1743414904758,3.1,1786.9,1786.8,0.12585372]
[1743414905265,3.1,1786.9,1786.6,12.75777]
[1743414905478,3.1,1786.9,1786.8,0.12585372]
[1743414905697,3.1,1786.9,1786.5,5.715]
[1743414905698,11.19348,1786.8,1786.5,5.715]
[1743414906684,7.16695,1786.7,1786.4,11.31184]
[1743414907801,7.16693,1786.7,1786.2,1.5635]
[1743414908091,5.59798,1786.4,1786.1,11.31266]
[1743414908590,11.19601,1786.4,1786.1,5.714]
[1743414909064,5.59826,1786.3,1786.1,5.714]
[1743414909268,7.16781,1786.4,1786.1,11.31274]
[1743414909790,1.5699,1786.4,1786.1,16.91148]
[1743414909987,5.59761,1786.5,1786.2,5.59836]
[1743414910489,4.563,1786.8,1786.2,5.59834]
[1743414910659,5.59754,1786.5,1786.2,5.59834]
[1743414910855,5.59754,1786.5,1786.1,11.31276]
[1743414911056,5.59754,1786.5,1786.2,5.59844]
[1743414911269,5.59754,1786.5,1786.2,11.19688]
[1743414911507,11.19532,1786.5,1786.1,16.91148]
[1743414911716,5.5979,1786.4,1786.1,11.31264]
[1743414912416,6.717072,1786.5,1786.1,16.91129]
[1743414912719,6.02310287,1786.6,1786.2,5.65434906]
[1743414912886,5.59765,1786.5,1786.2,5.59837]
[1743414913072,11.19533,1786.5,1786.1,16.91154]
[1743414913367,5.59816,1786.3,1785.8,39.43231]
[1743414913572,3.0,1786.2,1785.9,5.714]
[1743414913772,8.59861,1786.2,1785.9,5.714]
[1743414913968,5.59885,1786.1,1785.9,5.714]
[1743414914202,11.19785,1786.1,1785.9,5.714]
[1743414914507,5.59885,1786.1,1785.9,5.714]
[1743414914690,5.59885,1786.1,1785.8,39.43232]
[1743414914884,5.59885,1786.1,1786.0,0.10718411]
[1743414915084,5.59885,1786.1,1785.8,45.14632]
[1743414915290,8.59885,1786.1,1786.0,0.10718411]
[1743414915492,5.59986,1785.8,1785.5,5.60052]
[1743414915696,11.19975,1785.8,1785.6,5.714]
[1743414915896,1.6103,1785.9,1785.3,5.6012]
[1743414915897,5.60004,1785.7,1785.3,5.6012]
[1743414916214,5.60047,1785.6,1785.5,5.714]
[1743414916388,5.60071,1785.5,1785.2,1.5252]
[1743414916590,7.18251,1785.6,1785.3,5.714]
[1743414916806,7.18251,1785.6,1785.3,11.31529]
[1743414917008,3.0,1785.7,1785.4,5.60077]
[1743414917216,1.5821,1785.9,1785.5,7.16856249]
[1743414917421,11.05679675,1786.1,1785.7,11.19972]
[1743414917422,3.0,1786.0,1785.7,11.19972]
[1743414917606,3.0,1786.0,1785.8,5.714]
[1743414917817,3.0,1786.0,1785.8,16.96929097]
[1743414918124,3.0,1786.0,1785.8,11.31361]
[1743414918335,10.89451485,1786.3,1785.8,5.714]
[1743414918630,11.19589,1786.4,1786.0,11.19796]
[1743414918810,10.90459485,1786.5,1785.9,1.594]
[1743414919011,5.59731,1786.6,1786.3,5.59796]
[1743414919188,8.723379,1786.7,1786.3,5.59796]
[1743414919189,2.71411736,1786.7,1786.3,11.19596]
[1743414919396,2.71411736,1786.7,1786.3,11.19599]
[1743414919397,3.0,1786.6,1786.3,11.19599]
[1743414919598,8.59731,1786.6,1786.3,5.59796]
[1743414919907,5.35074759,1786.6,1786.2,7.2698]
[1743414920108,11.19603,1786.4,1786.2,5.714]
[1743414920296,1.5474,1786.3,1786.0,11.31294]
[1743414920495,17.90143485,1786.4,1786.0,11.31292]
[1743414920696,17.90143485,1786.4,1786.2,5.59847]
[1743414920697,3.0,1786.4,1786.2,5.59847]
[1743414920925,3.0,1786.4,1786.2,11.19684]
[1743414921105,3.0,1786.6,1786.3,5.59786]
[1743414921318,3.0,1786.6,1786.4,11.31166]
[1743414921508,9.30221485,1786.8,1786.4,11.3118]
[1743414921733,9.30221485,1786.8,1786.4,16.90947]
[1743414922121,9.30221485,1786.8,1786.5,5.59752]
[1743414923009,5.59668,1786.8,1786.5,5.59752]
[1743414923717,5.59668,1786.8,1786.4,12.91717]
[1743414924144,5.59668,1786.8,1786.4,18.51484]
[1743414924508,5.59695,1786.7,1786.4,12.91717]
[1743414924802,5.59668,1786.8,1786.5,5.714]
[1743414925017,11.19345,1786.8,1786.5,5.714]
[1743414925212,5.59668,1786.8,1786.4,14.652382]
[1743414925431,11.1935,1786.8,1786.4,12.91717]
[1743414926543,3.70553485,1786.8,1786.4,7.3195]
[1743414926842,8.59753,1786.6,1786.4,5.714]
[1743414927013,5.59753,1786.5,1786.4,5.714]
[1743414927345,5.59795,1786.4,1786.2,5.713]
[1743414927642,1.5973,1786.5,1786.1,1.5817]
[1743414927931,9.30347485,1786.4,1786.0,43.61487]
[1743414928105,9.30347485,1786.4,1786.1,5.59866]
[1743414928301,3.0,1786.5,1786.2,1.5786]
[1743414928506,3.0,1786.5,1786.2,7.17681]
[1743414929444,14.19533,1786.5,1786.2,1.5786]
[1743414930236,8.59788,1786.4,1786.3,0.10640545]
[1743414930752,14.19589,1786.4,1786.1,5.59865]
[1743414930936,14.19589,1786.4,1786.0,45.08647]
[1743414931100,14.19589,1786.4,1786.1,5.713]
[1743414931306,14.19589,1786.4,1786.1,5.81945737]
[1743414931533,7.1472,1786.3,1786.1,0.10645737]
[1743414931737,5.59847,1786.2,1786.1,0.10645737]
[1743414933344,7.1472,1786.3,1786.1,0.10645737]
[1743414933504,12.74566,1786.3,1786.1,0.10645737]
[1743414933952,5.59847,1786.2,1786.1,0.10645737]
[1743414934134,9.873037,1786.2,1786.1,0.10645737]
[1743414934310,13.57857185,1786.2,1786.1,0.10645737]
[1743414934640,5.59947,1785.9,1785.7,5.713]
[1743414935231,5.59923,1786.0,1785.7,11.31291]
[1743414935750,3.0,1786.1,1785.9,5.59926]
[1743414936119,3.0,1786.1,1785.9,11.19857]
[1743414936321,3.0,1786.1,1785.9,5.59926]
[1743414937541,3.25116437,1786.2,1785.9,0.05598916]
[1743414937840,3.0,1786.5,1786.2,5.59827]
[1743414938138,8.59761,1786.5,1786.2,11.31127]
[1743414939223,3.0,1786.3,1786.2,5.713]
[1743414939728,3.0,1786.3,1786.2,11.31147]
[1743414939933,3.0,1786.3,1786.2,5.713]
[1743414940637,8.59816,1786.3,1786.0,16.1317]
[1743414940805,3.0,1786.3,1786.1,11.31165]
[1743414943441,3.0,1786.3,1786.1,5.713]
[1743414943639,3.0,1786.3,1786.1,11.31175]
[1743414944562,3.0,1786.3,1786.1,11.31167]
[1743414944723,3.0,1786.5,1786.2,11.19694]
[1743414944926,3.0,1786.5,1786.4,5.59785]
[1743414945126,3.0,1786.5,1786.2,11.30559955]
[1743414945323,8.59757,1786.5,1786.1,16.91035]
[1743414945527,8.59757,1786.5,1786.3,0.10894955]
[1743414945827,8.59757,1786.5,1786.4,0.10894955]
[1743414946157,3.25116437,1786.6,1786.2,0.55]
[1743414946357,1.6504,1786.9,1786.7,5.59669]
[1743414946516,0.1,1786.9,1786.8,5.59659]
[1743414946717,0.1,1786.9,1786.8,5.70553955]
[1743414947747,0.1,1786.9,1786.8,5.76149846]
[1743414947952,0.1,1786.9,1786.8,5.70553955]
[1743414948416,0.1,1786.9,1786.8,7.62419941]
[1743414948617,0.1,1786.9,1786.8,8.17419941]
[1743414948815,0.1,1786.9,1786.8,9.87475833]
[1743414949030,0.1,1786.9,1786.8,19.95580878]
[1743414949230,0.1,1786.9,1786.8,19.89984986]
[1743414949635,3.0,1787.7,1787.5,5.59411]
[1743414949966,3.0,1787.8,1787.6,5.59394]
[1743414950168,7.22986,1787.9,1787.6,5.59394]
[1743414950357,12.82326,1787.9,1787.5,12.88991]
[1743414950522,8.84470437,1787.8,1787.5,7.2958]
[1743414950728,8.84525437,1787.6,1787.5,5.711]
[1743414951226,3.25116437,1787.6,1787.5,5.711]
[1743414951638,8.59388,1787.7,1787.5,5.711]
[1743414951639,14.18786,1787.7,1787.5,5.711]
[1743414952023,5.59409,1787.6,1787.5,5.711]
[1743414952654,5.59409,1787.6,1787.3,5.59502]
[1743414952863,7.22679,1787.6,1787.3,5.59502]
[1743414953159,7.22679,1787.6,1787.2,18.48242]
[1743414953462,12.8211,1787.6,1787.2,11.30516]
[1743414953622,7.22679,1787.6,1787.2,16.90034]
[1743414953825,7.22679,1787.6,1787.3,5.59502]
[1743414954026,7.22679,1787.6,1787.3,5.59493]
[1743414955257,7.22679,1787.6,1787.3,7.284939]
[1743414955475,1.6327,1787.6,1787.3,7.3408832]
[1743414955959,1.6327,1787.6,1787.3,12.9357632]
[1743414956158,1.6327,1787.6,1787.3,7.284889]
[1743414956364,1.6327,1787.6,1787.3,5.59487]
[1743414956763,1.6327,1787.6,1787.3,11.18979]
[1743414957059,7.2268,1787.6,1787.3,5.59487]
[1743414957228,12.82107,1787.6,1787.3,5.59487]
[1743414957433,1.6327,1787.6,1787.3,11.2457461]
[1743414957770,1.6327,1787.6,1787.4,5.5947]
[1743414958140,8.59384,1787.7,1787.4,5.59458]
[1743414958342,8.59384,1787.7,1787.4,5.59456]
[1743414958827,5.59409,1787.6,1787.3,7.09967]
[1743414959254,11.18836,1787.6,1787.3,1.5047]
[1743414959458,5.59409,1787.6,1787.3,1.5047]
[1743414959762,11.18837,1787.6,1787.3,1.5047]
[1743414959932,5.59409,1787.6,1787.3,1.5047]
[1743414960128,9.29295779,1787.4,1787.0,5.59594]
[1743414960467,9.29295779,1787.4,1787.1,11.35945132]
[1743414960468,8.59471,1787.4,1787.1,11.35945132]
[1743414960665,8.59471,1787.4,1787.1,11.3035]
[1743414961363,5.59526,1787.3,1787.1,5.708]
[1743414961531,11.19059,1787.3,1787.1,5.708]
[1743414961732,1.78887578,1787.3,1787.1,5.708]